[Event "XLIV Barbera del Valles-A 2022"]
[Site "Barbera del Valles"]
[Date "2022.07.04"]
[Round "1.7"]
[White "Sanchez, Sebastian Felipe"]
[Black "Perez Bolanos, Joel"]
[Result "1-0"]
[ECO "A09"]
[WhiteElo "2440"]
[BlackElo "2036"]
[Annotator "TA"]
[PlyCount "57"]
[EventDate "2022.07.04"]
[EventType "swiss"]
[EventCountry "ESP"]
[SourceTitle "playchess.com"]
[Source "ChessBase"]
[SourceQuality "1"]
[TimeControl "5400+30"]

{[%evp 9,57,24,25,11,5,16,16,7,15,14,0,13,24,-12,-4,-55,-19,-110,-87,-98,-106,-102,-118,-103,-91,-85,-97,-114,-37,-91,-74,-76,0,0,67,70,156,106,331,316,610,606,588,531,1762,483,492,485,4770,887]} 1. Nf3 {[%emt 1:31:00]} d5 {[%emt 1:31:00]} 2. c4 {[%emt 0:00:30]} d4 {[%emt 0:00:30]} 3. b4 {[%emt 0:00:30]} g5 {[%emt 0:00:30]} 4. h3 {[%emt 0:00:30]} h6 {[%emt 0:00:30]} 5. Bb2 {[%emt 0:00:30]} Bg7 $1 {[%emt 0:00:30]} 6. e3 {[%emt 0:00:30][%cal Rf3d4] A09: Réti Opening: 1 Nf3 d5 2 c4.} e5 {[%emt 0:00:30] [#]} 7. Qa4+ $146 {[%emt 0:00:30]} ({Predecessor:} 7. d3 Ne7 8. exd4 exd4 9. Be2 O-O 10. Nbd2 a5 11. b5 a4 12. O-O a3 13. Bc1 {0-1 (57) Maghsoodloo,P (2676)-Praggnanandhaa,R (2608) Chess.com INT 2020}) 7... Bd7 {[%emt 0:00:30]} 8. Qb3 {[%emt 0:00:30][%cal Re3d4] The position is equal.} Be6 {[%emt 0:00:30]} 9. Na3 {[%emt 0:00:30]} Ne7 {[%emt 0:00:30]} 10. exd4 {[%emt 0:00:30]} exd4 {[%emt 0:00:30]} 11. Bd3 {[%emt 0:00:30]} O-O {[%emt 0:00:30]} 12. Be4 {[%emt 0:00:30]} (12. Nc2 $11) 12... a5 {[%emt 0:00:30][%cal Ba7a5,Ba5b4][%mdl 32] White must now prevent ...axb4.} (12... Nbc6 $5 {[%cal Rb7b5]}) 13. Bxb7 {[%emt 0:00:30]} (13. Nc2 $1 $11) 13... Ra7 $17 {[%emt 0:00:30]} 14. Be4 {[%emt 0:00:30]} axb4 {[%emt 0:00:30]} 15. Nb5 {[%emt 0:00:30]} Ra6 {[%emt 0:00:30]} 16. Bxd4 {[%emt 0:00:30]} Bxd4 {[%emt 0:00:30]} 17. Nbxd4 {[%emt 0:00:30]} ({Much weaker is} 17. Nfxd4 c6 18. Nxe6 fxe6 $11) 17... c5 {[%emt 0:00:30]} 18. Nb5 {[%emt 0:00:30] [#]} f5 {[%emt 0:00:30]} (18... Nbc6 $1 $17 {[%cal Rc6a5] Hoping for ...Na5.} 19. Bxc6 Nxc6) 19. Bd3 {[%emt 0:00:30]} ({White should try} 19. Bc2 $1 $15) 19... Ng6 {[%emt 0:00:30][%mdl 1024] And now ...Nc6 would win. Black has strong compensation.} 20. O-O {[%emt 0:00:30]} Nc6 {[%emt 0:00:30]} (20... g4 $17 21. hxg4 fxg4 22. Bxg6 gxf3) 21. Rfe1 $1 $11 {[%emt 0:00:30]} Nf4 {[%emt 0:00:30]} (21... Qf6 $11) 22. Bf1 $1 $14 {[%emt 0:00:30]} Na5 {[%emt 0:00:30] [#]} ({Better is} 22... Bc8 $14) 23. Qe3 {[%emt 0:00:30]} (23. Qc2 $142 $1) 23... Nxc4 $2 {[%emt 0:00:30] Loses the game.} (23... Bxc4 $16 {keeps fighting.} 24. Bxc4+ (24. Qxc5 Bxf1 25. Rxf1 g4 $15) 24... Nxc4 25. Qxc5 Nxd2) 24. Qxc5 $18 {[%emt 0:00:30]} Nxd2 $2 {[%emt 0:00:30]} (24... Qb6 25. Qxb6 Nxb6) 25. Nxd2 {[%emt 0:00:30] White is clearly winning.} Qxd2 {[%emt 0:00:30]} 26. Nc7 {[%emt 0:00:30]} Rxa2 {[%emt 0:00:30]} 27. Rad1 {[%emt 0:00:30]} (27. Nxe6 $142 Nxe6 28. Bc4 Rxa1 29. Bxe6+ Kg7 30. Qe5+ Kg6 31. Rxa1) 27... Qc3 {[%emt 0:00:30]} 28. Nxe6 {[%emt 0:00:30]} Nxe6 {[%emt 0:00:30]} (28... Qxc5 $142 29. Nxc5 Rc2) 29. Qd5 {[%emt 0:00:30] Weighted Error Value: White=0.34/Black=0.51} (29. Bc4 $142 Ra1 30. Bxe6+ Kh7 31. Qxf8 Qxe1+ 32. Rxe1 Rxe1+ 33. Kh2 Rxe6 34. Qf7+ Kh8 35. Qxe6) 1-0

[Event "XLIV Barbera del Valles-A 2022"]
[Site "Barbera del Valles"]
[Date "2022.07.04"]
[Round "1.8"]
[White "Asensio Linan, Teodoro"]
[Black "Gkoumas, Georgios"]
[Result "0-1"]
[ECO "A00"]
[WhiteElo "2015"]
[BlackElo "2427"]
[Annotator "ChessBase"]
[PlyCount "74"]
[EventDate "2022.07.04"]
[EventType "swiss"]
[EventCountry "ESP"]
[SourceTitle "playchess.com"]
[Source "ChessBase"]
[SourceQuality "1"]
[TimeControl "5400+30"]

1. g3 {[%emt 0:04:04]} e5 {[%emt 0:00:31]} 2. a3 {[%emt 0:00:25]} d5 {[%emt 0:00:40]} 3. Nf3 {[%emt 0:00:12]} e4 {[%emt 0:03:31]} 4. Nh4 {[%emt 0:00:28]} Bc5 {[%emt 0:00:58]} 5. Nc3 {[%emt 0:09:27]} Nc6 {[%emt 0:09:20]} 6. d3 {[%emt 0:05:01]} Qf6 {[%emt 0:06:39]} 7. Bf4 {[%emt 0:32:33]} Be6 {[%emt 0:04:00]} 8. Qd2 {[%emt 0:05:11]} O-O-O {[%emt 0:01:38]} 9. O-O-O {[%emt 0:03:55]} e3 {[%emt 0:02:56]} 10. fxe3 {[%emt 0:02:26]} g5 {[%emt 0:00:08]} 11. d4 {[%emt 0:01:04]} Bb6 {[%emt 0:01:05]} 12. Be5 {[%emt 0:01:09]} Nxe5 {[%emt 0:00:09]} 13. dxe5 {[%emt 0:00:06]} Qxe5 {[%emt 0:20:34]} 14. Nf3 {[%emt 0:00:29]} Qg7 {[%emt 0:04:51]} 15. Na4 {[%emt 0:04:26]} Nf6 {[%emt 0:01:42]} 16. Nxb6+ {[%emt 0:01:21]} axb6 {[%emt 0:00:05]} 17. Qc3 {[%emt 0:00:28]} Qh6 {[%emt 0:00:44]} 18. Bg2 {[%emt 0:10:01]} Ne4 {[%emt 0:01:38]} 19. Qe5 {[%emt 0:02:46]} g4 {[%emt 0:03:13]} 20. Nd2 {[%emt 0:00:14]} Nf2 {[%emt 0:00:09]} 21. Nb3 {[%emt 0:03:23]} Rhe8 {[%emt 0:03:02]} 22. Nd4 {[%emt 0:01:24]} f6 {[%emt 0:04:23]} 23. Qf4 {[%emt 0:00:40]} Qxf4 {[%emt 0:00:07]} 24. exf4 {[%emt 0:00:19]} Nxh1 {[%emt 0:00:51]} 25. Bxh1 {[%emt 0:11:28]} c5 {[%emt 0:00:46]} 26. Nb5 {[%emt 0:00:00]} d4 {[%emt 0:00:54]} 27. Be4 {[%emt 0:00:00]} f5 {[%emt 0:01:49]} 28. Bg2 {[%emt 0:00:00]} Bc4 {[%emt 0:01:10]} 29. a4 {[%emt 0:00:00]} Bxe2 {[%emt 0:00:22]} 30. Rg1 {[%emt 0:00:00]} Bf3 {[%emt 0:00:46]} 31. Bxf3 {[%emt 0:00:00]} gxf3 {[%emt 0:00:07]} 32. Rf1 {[%emt 0:00:00]} Re3 {[%emt 0:00:03]} 33. Na3 {[%emt 0:00:24]} Rde8 {[%emt 0:01:49]} 34. Kd1 {[%emt 0:00:29]} Rxa3 {[%emt 0:00:45]} 35. bxa3 {[%emt 0:00:03]} Re3 {[%emt 0:00:04]} 36. h3 {[%emt 0:01:23]} h5 {[%emt 0:00:06]} 37. Kd2 {[%emt 0:01:00]} c4 {[%emt 0:00:30]} 0-1

[Event "XLIV Barbera del Valles-A 2022"]
[Site "Barbera del Valles"]
[Date "2022.07.04"]
[Round "1.9"]
[White "Munoz, Miguel"]
[Black "Sudarshan Bhat"]
[Result "1/2-1/2"]
[ECO "B20"]
[WhiteElo "2408"]
[BlackElo "2001"]
[Annotator "TA"]
[PlyCount "58"]
[EventDate "2022.07.04"]
[EventType "swiss"]
[EventCountry "ESP"]
[SourceTitle "playchess.com"]
[Source "ChessBase"]
[SourceQuality "1"]
[TimeControl "5400+30"]

{[%evp 12,58,0,1,10,8,10,13,15,0,0,0,0,-4,0,0,0,-25,-16,-22,-20,-41,-34,-44,-39,-30,-32,-45,-24,-27,-31,-29,-30,-25,0,7,0,-29,0,0,0,-6,-6,-6,-6,-6,-7,-8,-6]} 1. e4 {[%emt 0:00:04]} c5 {[%emt 0:00:08]} 2. g3 {[%emt 0:00:06]} d5 {[%emt 0:00:08]} 3. exd5 {[%emt 0:00:05]} Qxd5 {[%emt 0:00:06]} 4. Nf3 {[%emt 0:00:06]} Bg4 {[%emt 0:00:08]} 5. Bg2 {[%emt 0:00:06]} Qe6+ {[%emt 0:00:19]} 6. Kf1 {[%emt 0:00:07]} Nc6 {[%emt 0:01:35]} 7. h3 {[%emt 0:00:14]} Bxf3 {[%emt 0:00:30] B20: Sicilian: Unusual White 2nd moves.} 8. Bxf3 {[%emt 0:00:07]} Qd7 {[%emt 0:01:27]} 9. d3 {[%emt 0:00:33]} e6 {[%emt 0:01:03]} 10. Be3 {[%emt 1:34:02]} Nf6 {[%emt 0:00:35]} 11. Nc3 {[%emt 0:00:00]} Be7 {[%emt 0:02:34] [#]} 12. Kg2 $146 {[%emt 0:00:00]} ({Predecessor:} 12. a4 Nd4 13. Bg2 O-O 14. Kg1 Rac8 15. Kh2 Rfd8 16. a5 Nd5 17. Nxd5 exd5 18. a6 b6 19. c3 Ne6 {½-½ (19) Brochet,P (2368)-Genov,P (2467) Villeneuve Tolosane 2006}) 12... Rd8 {[%emt 0:01:50]} 13. Re1 {[%emt 0:00:00]} Nd4 {[%emt 0:04:04]} 14. Kh2 {[%emt 0:00:00]} O-O {[%emt 0:06:14]} 15. Bg2 {[%emt 0:00:00]} b5 {[%emt 0:03:15]} 16. a4 {[%emt 0:00:00]} b4 {[%emt 0:03:22]} 17. Nb1 {[%emt 0:00:00]} b3 {[%emt 0:13:01]} 18. cxb3 {[%emt 0:00:00]} Nf5 {[%emt 0:05:21] Pair of Knights!} 19. Nc3 {[%emt 0:00:00]} Qxd3 {[%emt 0:06:02]} 20. Qxd3 {[%emt 0:00:00]} Rxd3 {[%emt 0:00:04]} 21. Bf1 {[%emt 0:00:00]} Rdd8 {[%emt 0:00:08]} 22. Rad1 {[%emt 0:00:00]} Nd4 {[%emt 0:09:24]} 23. Bxd4 {[%emt 0:00:00]} cxd4 {[%emt 0:00:13]} 24. Ne4 {[%emt 0:00:00]} Nxe4 {[%emt 0:07:07]} 25. Rxe4 {[%emt 0:00:00] The position is equal.} Bc5 {[%emt 0:03:41]} 26. b4 {[%emt 0:00:00]} Bxb4 {[%emt 0:00:17]} 27. Rexd4 {[%emt 0:00:00]} Rxd4 {[%emt 0:00:31]} 28. Rxd4 {[%emt 0:00:00]} Bc5 {[%emt 0:00:48]} 29. Rd2 {[%emt 0:00:00]} a5 {[%emt 0:02:53] Weighted Error Value: White=0.05 (flawless) /Black=0.05 (flawless)} 1/2-1/2

[Event "XLIV Barbera del Valles-A 2022"]
[Site "Barbera del Valles"]
[Date "2022.07.05"]
[Round "2.1"]
[White "Vehi Bach, Victor Manuel"]
[Black "Alsina Leal, Daniel"]
[Result "0-1"]
[ECO "D00"]
[WhiteElo "2290"]
[BlackElo "2525"]
[Annotator "TA"]
[PlyCount "72"]
[EventDate "2022.07.04"]
[EventType "swiss"]
[EventCountry "ESP"]
[SourceTitle "playchess.com"]
[Source "ChessBase"]
[SourceQuality "1"]
[TimeControl "5400+30"]

{[%evp 9,72,2,2,11,20,0,154,-73,-84,-81,-74,-73,-89,-88,-72,-79,-77,-87,-68,-79,-76,-91,-89,-131,-131,-190,-185,-275,-220,-410,-404,-368,-191,-202,-78,-84,-77,-70,-59,-110,-139,-137,-64,-78,-153,-101,-56,-54,-18,-18,-18,-89,-8,-8,0,-47,-39,-110,0,-708,-662,-831,-811,-1486,-1189]} 1. d4 {[%emt 0:00:30]} Nf6 {[%emt 0:02:22]} 2. Bf4 {[%emt 0:00:10]} d5 {[%emt 0:00:28]} 3. e3 {[%emt 0:00:42]} c5 {[%emt 0:01:32]} 4. dxc5 {[%emt 0:02:55]} e6 {[%emt 0:02:23]} 5. b4 {[%emt 0:04:40]} a5 {[%emt 0:00:17]} 6. c3 {[%emt 0:00:10][%cal Bc2c3,Bc3b4][%mdl 32] D00: 1 d4 d5: Unusual lines.} ({Reject} 6. Bb5+ Bd7 7. Bxd7+ Qxd7 8. bxa5 Bxc5 $15) 6... axb4 {[%emt 0:00:43]} 7. cxb4 {[%emt 0:00:10]} b6 $2 {[%emt 0:06:15]} (7... Bd7 $11) 8. Bb5+ $2 {[%emt 0:01:04]} (8. Bxb8 $16 {is forced if you want to stay better. Hoping for Be5.} Rxb8 9. Bb5+ Ke7 10. c6) 8... Bd7 $17 {[%emt 1:20:30]} 9. Bxd7+ {[%emt 0:08:14]} Nbxd7 {[%emt 0:00:00]} 10. Nf3 {[%emt 0:12:07]} bxc5 {[%emt 0:00:00]} 11. bxc5 {[%emt 0:00:22] [#]} Bxc5 $146 {[%emt 0:00:00]} ({Predecessor:} 11... Qa5+ 12. Nbd2 Bxc5 13. O-O Qa4 14. Nb3 Ba3 15. Ne5 O-O 16. Rb1 Rfc8 {0-1 (16) Trakru,R (1775)-Graham,N (2262) Chess.com INT 2021}) 12. O-O {[%emt 0:00:14]} O-O {[%emt 0:00:00]} 13. Nbd2 {[%emt 0:03:56]} Ra3 {[%emt 0:00:00]} 14. Nb3 {[%emt 0:17:29]} Be7 {[%emt 0:00:00]} 15. Ne5 {[%emt 0:00:31]} Qa8 {[%emt 0:00:00] Against Nc6} 16. Nc1 {[%emt 0:01:18]} Nc5 {[%emt 0:00:00]} 17. f3 {[%emt 0:10:21]} (17. Nb3 $17 {might work better.}) 17... Nh5 $19 {[%emt 0:00:00]} 18. Rf2 {[%emt 0:00:17]} (18. Nb3 {is a better defense.}) 18... Bf6 {[%emt 0:00:00]} 19. g4 $2 {[%emt 0:22:31]} (19. Rb1) 19... Nxf4 {[%emt 0:00:00]} 20. exf4 {[%emt 0:00:08]} Bh4 {[%emt 0:00:00]} (20... g5 $142 21. Qd4 {[#]} gxf4 $1 22. Qxf4 Bh4) 21. Rc2 {[%emt 0:00:58]} f6 {[%emt 0:06:30]} (21... Qa4 $19 22. Ne2 Be7) 22. Ned3 $17 {[%emt 0:04:03]} Nxd3 {[%emt 0:00:00]} 23. Nxd3 {[%emt 0:00:02]} Qa7+ {[%emt 0:00:00]} 24. Kg2 {[%emt 0:01:44]} (24. Nc5 $1 $15) 24... Qe3 {[%emt 0:00:00]} 25. Nc5 {[%emt 0:00:36]} Rc8 {[%emt 0:00:00]} (25... f5 $17 {White must now prevent ...fxg4.} 26. gxf5 Rxf5) 26. Rac1 $1 $15 {[%emt 0:00:10]} h5 {[%emt 0:00:00]} 27. gxh5 {[%emt 0:00:46][%cal Oh5h6]} Rc6 {[%emt 0:00:00] Black is much more active.} 28. Nb3 {[%emt 0:01:14]} Rxc2+ {[%emt 0:00:00]} (28... Rc4 $5) 29. Rxc2 {[%emt 0:00:59]} Qxf4 {[%emt 0:00:31] Black wants to play ...Kf7.} 30. Qe2 {[%emt 0:03:01]} (30. Qd3 $1 $11 f5 31. Qd4 Qxd4 32. Nxd4) 30... Qe5 {[%emt 0:01:37]} (30... Qf5 $17 {Strongly threatening ...Kh7.} 31. Rc6 Qxh5 32. Qxe6+ Kh7) 31. Qd3 $11 {[%emt 0:00:57] [#] White wants to mate with Rc8+.} f5 {[%emt 0:00:53][%cal Bf6f5,Bf5e4][%mdl 32]} 32. Re2 {[%emt 0:01:22]} (32. Qb5 $11 Be7 33. Qe8+ Bf8 34. Nc5) 32... Qf6 $36 {[%emt 0:00:07][%mdl 2048] Black is more active.} 33. f4 {[%emt 0:01:22] Prevents Qg5+.} ({White should play} 33. Qe3 $15) 33... Ra4 {[%emt 0:00:47]} (33... Kh7 $17 34. Qe3 Qh6 35. Qxe6 Qxe6 36. Rxe6 Rxa2+ 37. Kh3 Bf6) 34. Nc5 $2 {[%emt 0:01:12][%mdl 8192]} (34. Qb5 $11 Re4 35. Nc5) 34... Rxf4 $19 {[%emt 0:00:34] ( -> ...Qg5+). Black is clearly winning.} 35. Nxe6 {[%emt 0:00:09]} Re4 {[%emt 0:00:35]} 36. Rxe4 {[%emt 0:00:48]} fxe4 {[%emt 0:00:15] Weighted Error Value: White=0.76/Black=0.36} 0-1

[Event "XLIV Barbera del Valles-A 2022"]
[Site "Barbera del Valles"]
[Date "2022.07.05"]
[Round "2.2"]
[White "Asis Gargatagli, Hipolito"]
[Black "Dahale, Atul"]
[Result "1-0"]
[ECO "B22"]
[WhiteElo "2514"]
[BlackElo "2162"]
[Annotator "TA"]
[PlyCount "77"]
[EventDate "2022.07.04"]
[EventType "swiss"]
[EventCountry "ESP"]
[SourceTitle "playchess.com"]
[Source "ChessBase"]
[SourceQuality "1"]
[TimeControl "5400+30"]

{[%evp 12,77,4,15,16,13,16,16,50,48,83,84,76,85,76,83,74,79,100,82,91,81,113,92,106,85,111,75,90,87,96,94,124,118,133,117,125,129,135,128,145,137,138,140,162,167,180,180,213,207,395,268,260,252,423,418,415,370,425,414,376,320,548,541,547,518,569,570]} 1. e4 {[%emt 0:00:03]} c5 {[%emt 0:00:22]} 2. c3 {[%emt 0:00:27]} d5 {[%emt 0:01:44]} 3. exd5 {[%emt 0:00:09]} Qxd5 {[%emt 0:00:05]} 4. d4 {[%emt 0:00:07]} Nf6 {[%emt 0:00:13]} 5. Nf3 {[%emt 0:00:09]} e6 {[%emt 0:01:44]} 6. Na3 {[%emt 0:00:55]} Nc6 {[%emt 0:01:51]} 7. Be3 {[%emt 0:00:29]} cxd4 {[%emt 0:00:12] [#] B22: Sicilian: 2 c3.} 8. Nb5 $1 {[%emt 0:00:07] And now Nc7+ would win.} Qd8 {[%emt 0:00:57] Inhibits Nc7+.} (8... Qd7 9. Nbxd4) 9. Nbxd4 {[%emt 0:01:02]} Bd7 {[%emt 0:12:35] The position is equal.} (9... Nd5 {is interesting.} 10. Bg5 f6 11. Bb5 Bd7) 10. Nxc6 {[%emt 0:02:33]} Bxc6 {[%emt 0:02:00] [#]} 11. Qxd8+ $1 {[%emt 0:07:37]} Kxd8 {[%emt 0:00:07] [#]} 12. O-O-O+ $146 {[%emt 0:14:57]} ({Predecessor:} 12. Ne5 Be8 13. O-O-O+ Kc8 14. Be2 Nd5 15. Rd4 f6 16. Nd3 Nxe3 17. fxe3 Bc6 18. Bf3 {1-0 (68) Hindermann,F (2293)-Maksimovic,B (2452) Chess.com INT 2021}) 12... Ke8 {[%emt 0:00:26] [#]} 13. Ne5 $1 {[%emt 0:00:53]} Nd5 {[%emt 0:03:38]} 14. Bd4 {[%emt 0:04:25] White is more active.} ({But not} 14. Nxc6 Nxe3 15. fxe3 bxc6 $11) 14... f6 {[%emt 0:02:47]} 15. Nxc6 {[%emt 0:03:43]} bxc6 {[%emt 0:00:02]} 16. c4 {[%emt 0:09:34]} Nb6 {[%emt 0:04:46]} 17. g3 {[%emt 0:12:07]} c5 {[%emt 0:06:04]} 18. Be3 {[%emt 0:01:10]} Rd8 {[%emt 0:03:44]} 19. Re1 {[%emt 0:07:19]} Kf7 {[%emt 0:00:45]} 20. b3 {[%emt 0:02:02]} Bd6 {[%emt 0:02:34]} 21. Bh3 {[%emt 0:01:10][%cal Bf1h3,Bh3g2,Bg2c6,Bc6b5][%mdl 32]} Rhe8 {[%emt 0:01:53]} 22. Re2 {[%emt 0:00:18]} Bf8 {[%emt 0:13:28]} 23. Rhe1 {[%emt 0:01:21]} Nd7 {[%emt 0:01:47]} 24. Bf4 {[%emt 0:01:46] Inhibits Ne5.} f5 {[%emt 0:02:28]} 25. Bg2 {[%emt 0:08:29] Bc6 is the strong threat.} Nf6 {[%emt 0:00:38]} 26. Bc6 {[%emt 0:00:26]} Re7 {[%emt 0:00:31]} 27. Rd1 {[%emt 0:00:55]} Rc8 {[%emt 0:01:19]} 28. Bb5 {[%emt 0:00:20] This bishop pair is nice.} Ne4 {[%emt 0:01:04]} 29. Be5 $36 {[%emt 0:00:51][%mdl 2048] Prevents Nc3. White has strong initiative.} Kg6 {[%emt 0:15:33]} 30. h4 {[%emt 0:03:18]} Rf7 $2 {[%emt 0:01:47]} (30... Kf7 31. f3 Nf6) 31. f3 {[%emt 0:05:13]} Nf6 {[%emt 0:00:12]} 32. Bf4 {[%emt 0:00:30]} Nh5 $2 {[%emt 0:02:51]} (32... e5) 33. Rxe6+ $18 {[%emt 0:00:52][%cal Be2e6,Be6e8,Be8c8][%mdl 32]} Rf6 {[%emt 0:00:04]} 34. Re8 {[%emt 0:06:32]} Nxf4 {[%emt 0:02:22]} 35. Rxc8 {[%emt 0:00:07]} Ne2+ {[%emt 0:00:05]} 36. Kc2 {[%emt 0:00:26][%cal Ob3b4] Strongly threatening b4!} Nxg3 $2 {[%emt 0:00:09]} (36... Nd4+ {might work better.} 37. Kb1 a5) 37. b4 {[%emt 0:00:41] White is clearly winning.} cxb4 {[%emt 0:00:27]} 38. c5 {[%emt 0:00:07][%cal Bc4c5,Bc5c6][%mdl 32]} Kh5 {[%emt 0:00:32]} 39. c6 {[%emt 0:06:50] Black got outplayed after the opening.  Weighted Error Value: White=0.08 (flawless) /Black=0.35} 1-0

[Event "XLIV Barbera del Valles-A 2022"]
[Site "Barbera del Valles"]
[Date "2022.07.05"]
[Round "2.3"]
[White "Barros, Raul Junior"]
[Black "Cuartas, Jaime Alexander"]
[Result "0-1"]
[ECO "B15"]
[WhiteElo "2174"]
[BlackElo "2513"]
[Annotator "TA"]
[PlyCount "100"]
[EventDate "2022.07.04"]
[EventType "swiss"]
[EventCountry "ESP"]
[SourceTitle "playchess.com"]
[Source "ChessBase"]
[SourceQuality "1"]
[TimeControl "5400+30"]

{[%evp 12,100,0,0,-7,0,0,0,2,0,4,-11,-6,-17,-7,-12,19,8,26,12,24,25,32,-4,0,0,0,0,0,0,0,13,22,23,18,-34,-42,-80,-81,-179,-191,-290,-262,-270,-237,-271,-238,-362,-262,-264,-259,-262,-264,-359,-252,-243,-253,-289,-237,-241,-213,-311,-299,-317,-296,-349,-320,-304,0,-345,-291,-332,-335,-328,-301,-306,-291,-419,-418,-634,-633,-637,-638,-683,-670,-753,-719,-952,-948,-848,-787]} 1. e4 {[%emt 0:00:30]} c6 {[%emt 0:00:30]} 2. d4 {[%emt 0:00:20]} d5 {[%emt 0:00:04]} 3. Nd2 {[%emt 0:00:12][%cal Bb1d2,Bd2e4,Be4g5][%mdl 32]} dxe4 {[%emt 0:00:08]} 4. Nxe4 {[%emt 0:00:06]} Nf6 {[%emt 0:00:08]} 5. Ng5 {[%emt 0:00:28]} h6 {[%emt 0:00:22]} 6. N5f3 {[%emt 0:00:09]} Bf5 {[%emt 0:00:49]} 7. Bd3 {[%emt 0:02:10]} Bxd3 {[%emt 0:00:25] B15: Caro-Kann: 3 Nc3: 3...g6 and 3...dxe4 4 Nxe4 Nf6 5 Nxf6+ exf6.} 8. Qxd3 {[%emt 0:00:11]} Nbd7 {[%emt 0:00:08]} 9. Ne2 {[%emt 0:01:07]} e6 {[%emt 0:00:12] The position is equal.} 10. Bf4 {[%emt 0:03:38] [#]} Qb6 $146 {[%emt 0:00:56]} ({Predecessor:} 10... Bb4+ 11. c3 Be7 12. h3 a5 13. O-O O-O 14. Rfe1 Re8 15. c4 Qb6 16. Nc3 Qa6 {1-0 (36) Lessard,C (2121)-Gaulin,G (1956) Quebec 2017}) 11. O-O-O {[%emt 0:06:56]} Be7 {[%emt 0:01:43]} 12. Ne5 {[%emt 0:02:36]} Nxe5 {[%emt 0:00:55]} 13. Bxe5 {[%emt 0:00:25]} O-O-O {[%emt 0:02:12]} 14. Kb1 {[%emt 0:01:56]} Ng4 {[%emt 0:10:03]} 15. Bg3 {[%emt 0:01:34]} Nf6 {[%emt 0:00:35]} 16. Qf3 {[%emt 0:02:42]} Qa5 {[%emt 0:14:22]} 17. c4 {[%emt 0:08:53]} Qh5 {[%emt 0:00:54]} 18. Qe3 {[%emt 0:06:52][%cal Od4d5]} Qf5+ {[%emt 0:01:45]} 19. Ka1 {[%emt 0:01:26][%cal Od4d5]} Qe4 {[%emt 0:00:52] Against d5} 20. Qd2 {[%emt 0:05:19][%cal Od2a5] And now Qa5! would win.} Bd6 {[%emt 0:04:24]} 21. f3 {[%emt 0:01:00]} Qf5 {[%emt 0:00:08]} 22. Bxd6 {[%emt 0:03:50]} Rxd6 {[%emt 0:00:06]} 23. Ng3 {[%emt 0:01:32]} (23. Qc3 $11) 23... Qg5 $15 {[%emt 0:02:07]} 24. Qf2 {[%emt 0:08:43] [#]} Rhd8 $1 {[%emt 0:02:37][%cal Og5c5]} 25. f4 {[%emt 0:11:51] [#]} (25. Rd3 $17) 25... Qc5 $1 $19 {[%emt 0:00:35]} 26. Rc1 {[%emt 0:07:45]} (26. Ne2 {is a better defense.}) 26... Qxd4 {[%emt 0:00:51]} 27. Qf3 {[%emt 0:01:23]} g6 {[%emt 0:03:44] Inhibits f5.} 28. a3 {[%emt 0:00:38]} h5 {[%emt 0:04:09]} 29. Rhd1 {[%emt 0:03:03]} (29. Rhe1 {was worth a try.}) 29... Qc5 {[%emt 0:00:55]} 30. Rxd6 {[%emt 0:02:32]} Qxd6 {[%emt 0:01:48]} (30... Rxd6 $2 {perishes.} 31. b4 Qd4+ 32. Kb1 $19) 31. Nf1 {[%emt 0:02:22]} Qd3 {[%emt 0:00:30]} 32. Ne3 {[%emt 0:00:57]} Qe4 {[%emt 0:06:31]} 33. Qxe4 {[%emt 0:01:27]} Nxe4 {[%emt 0:00:06][%cal Bf6e4,Be4d2,Bd2f3][%mdl 4128] Endgame KRN-KRN} 34. Rd1 {[%emt 0:00:10]} Nd2 {[%emt 0:02:25]} 35. Ka2 {[%emt 0:01:01]} a5 {[%emt 0:01:01]} 36. a4 {[%emt 0:02:20]} (36. b4 $142) 36... Kc7 {[%emt 0:01:52]} 37. g3 {[%emt 0:00:28]} c5 {[%emt 0:06:25]} 38. Rc1 {[%emt 0:03:17]} Nf3 {[%emt 0:02:08]} 39. Nf1 {[%emt 0:01:49]} Nd2 {[%emt 0:02:11]} 40. Ne3 {[%emt 0:00:15]} Rd3 {[%emt 0:01:03]} 41. Rc3 {[%emt 0:00:47]} Rd4 {[%emt 0:00:14]} 42. Rc2 {[%emt 0:01:51]} b6 {[%emt 0:00:25]} 43. Rc3 {[%emt 0:00:32]} Re4 {[%emt 0:02:07][%cal Oh5h4]} 44. b3 {[%emt 0:00:36]} (44. Rc2 {keeps fighting.}) 44... Nf3 {[%emt 0:00:50]} 45. h4 {[%emt 0:02:11]} (45. Kb1 $142 Nxh2 46. Nc2) 45... Nd4 {[%emt 0:00:17] ...Ne2 is the strong threat. Black is clearly winning.} 46. Rd3 {[%emt 0:00:27]} Ne2 {[%emt 0:00:19] Hoping for ...Nc1+.} 47. Kb2 {[%emt 0:00:39] Prevents Nc1.} Nxg3 {[%emt 0:00:19]} 48. Nc2 {[%emt 0:00:09]} Ne2 {[%emt 0:01:07]} 49. Re3 {[%emt 0:01:28]} Rxe3 {[%emt 0:00:26]} 50. Nxe3 {[%emt 0:00:02]} Nxf4 {[%emt 0:26:47] Weighted Error Value: White=0.36/Black=0.24 (precise)} 0-1